fUST/lending_fUST_20250218
["ID","MTS","AMOUNT","RATE_DAILY","PERIOD"]
[353460125,1739851842595,-610.48,0.00017125,2]
[353460126,1739851842607,-1363.28,0.00017125,2]
[353460127,1739851842620,-5570.12,0.00017125,2]
[353460128,1739851842633,-1455.31,0.00017125,2]
[353460129,1739851842645,-1074.1,0.00017126,2]
[353460130,1739851842659,-1363.28,0.00017207,2]
[353460131,1739851842670,-5570.12,0.00017207,2]
[353460132,1739851842682,-1455.31,0.00017207,2]
[353460133,1739851842695,-1074.1,0.00017208,2]
[353460134,1739851842707,-1363.28,0.00017289,2]
[353460135,1739851842719,-1074.18,0.0001729,2]
[353460136,1739851842731,-5570.2292,0.0001729,2]
[353460137,1739851842743,-1455.39,0.0001729,2]
[353460138,1739851842755,-400.0,0.00017332,2]
[353460139,1739851842769,-283.77691822,0.00017358,2]
[353460140,1739851842782,-1363.40624491,0.00017372,2]
[353460141,1739851842793,-635.89,0.00017534,4]
[353460142,1739851842805,-310.9435121,0.00017639,2]
[353460143,1739851842816,-159.93229297,0.000179,2]
[353460144,1739851842828,-159.93229297,0.000179,2]
[353460145,1739851842839,-159.93229297,0.000179,2]
[353460146,1739851842852,-159.93229297,0.000179,2]
[353460147,1739851842864,-159.93229297,0.000179,2]
[353460148,1739851842876,-159.93229297,0.000179,2]
[353460149,1739851842888,-159.93229297,0.000179,2]
[353460150,1739851842901,-159.93,0.000179,2]
[353460151,1739851842911,-157.12646327,0.000179,2]
[353460152,1739851842922,-157.12646327,0.000179,2]
[353460153,1739851842934,-157.12646327,0.000179,2]
[353460154,1739851842946,-157.12646327,0.000179,2]
[353460155,1739851842959,-157.12646327,0.000179,2]
[353460156,1739851842971,-157.12646327,0.000179,2]
[353460157,1739851842984,-157.12646327,0.000179,2]
[353460158,1739851843005,-157.12646327,0.000179,2]
[353460159,1739851843022,-157.12646327,0.000179,2]
[353460160,1739851843034,-157.12646327,0.000179,2]
[353460161,1739851843046,-157.12646327,0.000179,2]
[353460162,1739851843060,-157.12646327,0.000179,2]
[353460163,1739851843071,-157.12646327,0.000179,2]
[353460164,1739851843082,-157.12646327,0.000179,2]
[353460165,1739851843092,-157.12646327,0.000179,2]
[353460166,1739851843103,-157.12646327,0.000179,2]
[353460167,1739851843114,-157.12646327,0.000179,2]
[353460168,1739851843126,-157.12646327,0.000179,2]
[353460169,1739851843139,-157.12,0.000179,2]
[353460170,1739851843151,-7150.72474491,0.000179,2]
[353460171,1739851843163,-160.0,0.000179,5]
[353460172,1739851843174,-3211.32771552,0.0001798,2]
[353460173,1739851843185,-3211.32771552,0.0001799,2]
[353460175,1739851843199,-152.3254028,0.00017998,2]
[353460177,1739851843210,-50685.19767218,0.00018,5]
[353460179,1739851843224,-1620.57714922,0.00018,5]
[353460181,1739851843236,-2279359.41665084,0.00018,15]
[353460227,1739851844095,-244.00968204,0.00017312,2]
[353460228,1739851844105,-3379.41414173,0.00018,15]
[353460229,1739851844117,-4436.71785262,0.00018,15]
[353460230,1739851844129,-111525.75332162,0.00018,15]
[353460231,1739851844141,-2993.47541133,0.00018,15]
[353460232,1739851844153,-1133.85484393,0.00018,15]
[353460233,1739851844164,-2020.65807544,0.00018,15]
[353460234,1739851844207,-500.0,0.00015398,2]
[353460235,1739851844217,-163.05583658,0.000179,2]
[353460236,1739851844228,-80.95384546,0.000179,2]
[353460237,1739851844238,-37878.90207376,0.00018,15]
[353460238,1739851844249,-2320.45035696,0.00018,15]
[353460243,1739851846536,-6059.204464,0.00018,15]
[353460244,1739851846548,-2606.79839248,0.00018,15]
[353460245,1739851846642,-37762.02799225,0.00018,15]
[353460247,1739851879200,400.0,0.00010685,2]
[353460259,1739852826086,-800.0,0.00012937,2]
[353460260,1739852826109,-505.26195927,0.00013068,2]
[353460261,1739852832129,-281.20317066,0.00012808,2]
[353460262,1739852838087,-518.79682934,0.00012808,2]
[353460263,1739852838109,-207.97867813,0.00013068,2]
[353460264,1739852843157,-86.7593626,0.00013068,2]
[353460265,1739852843179,-64.1526374,0.00013807,2]
[353460266,1739852847093,-2971.36455889,0.000136,3]
[353460270,1739852960099,-400.0,0.00010685,2]
[353460271,1739852960121,-800.0,0.00013068,2]
[353460272,1739852960143,-3931.81878633,0.000136,3]
[353460277,1739853023785,800.0,0.00013068,2]
[353460278,1739853030563,159.284333,0.00013532,2]
[353460301,1739853031885,-159.284333,0.00013807,2]
[353460302,1739853031894,-151.0,0.00014019,2]
[353460303,1739853031903,-300.0,0.00014132,2]
[353460304,1739853031913,-500.0,0.00014133,2]
[353460305,1739853031923,-512.15,0.00014133,2]
[353460306,1739853031932,-500.0,0.00014133,2]
[353460307,1739853031942,-500.0,0.00014133,2]
[353460309,1739853031952,-500.0,0.00014133,2]
[353460310,1739853031962,-503.37867484,0.00014133,2]
[353460311,1739853031971,-500.0,0.00014133,2]
[353460312,1739853031982,-502.02272953,0.00014133,2]
[353460313,1739853031991,-500.0,0.00014133,2]
[353460314,1739853032001,-500.0,0.00014133,2]
[353460315,1739853032010,-504.60663557,0.00014133,2]
[353460316,1739853032021,-500.0,0.00014133,2]
[353460317,1739853032030,-500.0,0.00014133,2]
[353460318,1739853032040,-500.0,0.00014133,2]
[353460319,1739853032049,-503.65855487,0.00014133,2]
[353460320,1739853032058,-502.07584757,0.00014133,2]
[353460321,1739853032071,-500.0,0.00014133,2]
[353460322,1739853032082,-500.0,0.00014133,2]
[353460323,1739853032092,-509.30474972,0.00014133,2]
[353460324,1739853032102,-500.0,0.00014133,2]
[353460325,1739853032111,-504.79713729,0.00014133,2]
[353460326,1739853032121,-508.27433152,0.00014133,2]
[353460327,1739853032130,-500.0,0.00014133,2]
[353460328,1739853032140,-502.48827006,0.00014133,2]
[353460329,1739853032150,-500.0,0.00014133,2]
[353460330,1739853032160,-500.0,0.00014133,2]
[353460331,1739853032170,-507.95260815,0.00014133,2]
[353460332,1739853032179,-500.0,0.00014133,2]
[353460333,1739853032189,-504.03083405,0.00014133,2]
[353460334,1739853032199,-505.53570753,0.00014133,2]
[353460335,1739853032209,-606.55671246,0.00014133,2]
[353460336,1739853032218,-503.8304537,0.00014133,2]
[353460337,1739853032230,-513.90040333,0.00014133,2]
[353460338,1739853032243,-611.91,0.00014133,2]
[353460339,1739853032256,-500.0,0.00014133,2]
[353460340,1739853032269,-500.0,0.00014133,2]
[353460341,1739853032281,-500.0,0.00014133,2]
[353460342,1739853032293,-503.34011564,0.00014133,2]
[353460343,1739853032304,-500.0,0.00014133,2]
[353460344,1739853032315,-500.0,0.00014133,2]
[353460345,1739853032328,-500.0,0.00014133,2]
[353460346,1739853032339,-500.0,0.00014133,2]
[353460347,1739853032351,-503.72007451,0.00014133,2]
[353460348,1739853032363,-502.91285614,0.00014133,2]
[353460349,1739853032374,-500.0,0.00014133,2]
[353460350,1739853032386,-4119.7,0.00014133,2]
[353460351,1739853032398,-500.0,0.00014133,2]
[353460352,1739853032410,-503.21310985,0.00014133,2]
[353460353,1739853032422,-505.19886801,0.00014133,2]
[353460354,1739853032434,-500.0,0.00014133,2]
[353460355,1739853032447,-501.63892317,0.00014133,2]
[353460356,1739853032459,-500.0,0.00014133,2]
[353460357,1739853032471,-500.0,0.00014133,2]
[353460358,1739853032482,-502.47113934,0.00014133,2]
[353460359,1739853032494,-500.0,0.00014133,2]
[353460360,1739853032506,-502.60698605,0.00014133,2]
[353460361,1739853032517,-506.81870608,0.00014133,2]
[353460362,1739853032528,-500.0,0.00014133,2]
[353460363,1739853032539,-504.11950349,0.00014133,2]
[353460364,1739853032551,-500.0,0.00014133,2]
[353460365,1739853032565,-502.2766428,0.00014133,2]
[353460366,1739853032576,-505.69658739,0.00014133,2]
[353460367,1739853032587,-507.67684174,0.00014133,2]
[353460368,1739853032597,-501.98923944,0.00014133,2]
[353460369,1739853032607,-503.98684283,0.00014133,2]
[353460370,1739853032617,-504.95677659,0.00014133,2]
[353460371,1739853032629,-608.99581926,0.00014133,2]
[353460372,1739853032639,-505.17999083,0.00014133,2]
[353460373,1739853032650,-502.60453013,0.00014133,2]
[353460374,1739853032662,-193.79876572,0.00014134,2]
[353460375,1739853032675,-500.0,0.00014134,2]
[353460376,1739853032689,-500.0,0.00014134,2]
[353460377,1739853032701,-500.0,0.00014134,2]
[353460378,1739853032712,-571.72629322,0.00014134,2]
[353460379,1739853032724,-24900.0,0.00014135,2]
[353460380,1739853032736,-487.9334583,0.00014211,2]
[353460381,1739853032748,-500.0,0.00014216,2]
[353460382,1739853032760,-442.35,0.00014216,2]
[353460383,1739853032772,-500.0,0.00014216,2]
[353460384,1739853032783,-500.0,0.00014216,2]
[353460385,1739853032793,-500.0,0.00014216,2]
[353460386,1739853032803,-500.0,0.00014216,2]
[353460387,1739853032814,-500.0,0.00014216,2]
[353460388,1739853032824,-500.0,0.00014216,2]
[353460389,1739853032834,-500.0,0.00014216,2]
[353460390,1739853032846,-500.0,0.00014216,2]
[353460391,1739853032858,-609.76,0.00014216,2]
[353460392,1739853032870,-500.0,0.00014216,2]
[353460393,1739853032882,-500.0,0.00014216,2]
[353460394,1739853032893,-500.0,0.00014216,2]
[353460395,1739853032903,-500.0,0.00014216,2]
[353460396,1739853032913,-500.0,0.00014216,2]
[353460397,1739853032924,-500.0,0.00014216,2]
[353460398,1739853032934,-500.0,0.00014216,2]
[353460399,1739853032945,-500.0,0.00014216,2]
[353460400,1739853032956,-500.0,0.00014216,2]
[353460401,1739853032966,-500.0,0.00014216,2]
[353460402,1739853032976,-500.0,0.00014216,2]
[353460403,1739853032986,-507.66210569,0.00014216,2]
[353460404,1739853032996,-500.0,0.00014216,2]
[353460405,1739853033006,-250.0,0.00014279,2]
[353460406,1739853033017,-500.0,0.00014298,2]
[353460407,1739853033027,-594.88,0.00014298,2]
[353460408,1739853033038,-500.0,0.00014298,2]
[353460409,1739853033049,-500.0,0.00014298,2]
[353460410,1739853033060,-500.0,0.00014298,2]
[353460411,1739853033071,-607.5,0.00014298,2]
[353460412,1739853033083,-628.23924038,0.00014298,2]
[353460413,1739853033093,-500.0,0.00014298,2]
[353460414,1739853033105,-500.0,0.00014298,2]
[353460415,1739853033115,-500.0,0.00014298,2]
[353460416,1739853033125,-500.0,0.00014298,2]
[353460417,1739853033136,-243.98,0.00014298,2]
[353460418,1739853033147,-500.0,0.00014298,2]
[353460419,1739853033158,-500.0,0.00014298,2]
[353460420,1739853033169,-500.0,0.00014298,2]
[353460421,1739853033180,-500.0,0.00014298,2]
[353460422,1739853033191,-500.0,0.00014298,2]
[353460423,1739853033202,-500.0,0.00014298,2]
[353460424,1739853033213,-500.0,0.00014298,2]
[353460425,1739853033224,-500.0,0.00014298,2]
[353460426,1739853033235,-500.00892033,0.00014298,2]
[353460427,1739853033247,-500.0,0.0001438,2]
[353460428,1739853033258,-500.0,0.0001438,2]
[353460429,1739853033269,-500.0,0.0001438,2]
[353460430,1739853033281,-500.0,0.0001438,2]
[353460431,1739853033291,-500.0,0.0001438,2]
[353460432,1739853033303,-500.0,0.0001438,2]
[353460433,1739853033314,-500.0,0.0001438,2]
[353460434,1739853033325,-500.0,0.0001438,2]
[353460435,1739853033337,-500.0,0.0001438,2]
[353460436,1739853033349,-500.0,0.0001438,2]
[353460437,1739853033360,-500.0,0.0001438,2]
[353460438,1739853033371,-500.0,0.0001438,2]
[353460439,1739853033383,-500.0,0.0001438,2]
[353460440,1739853033394,-500.0,0.0001438,2]
[353460441,1739853033404,-500.0,0.0001438,2]
[353460442,1739853033537,-800.0,0.00014438,2]
[353460443,1739853033550,-500.0,0.00014462,2]
[353460444,1739853033560,-500.0,0.00014462,2]
[353460445,1739853033571,-500.0,0.00014462,2]
[353460446,1739853033581,-561.3,0.00014462,2]
[353460447,1739853033591,-500.0,0.00014462,2]
[353460448,1739853033600,-500.0,0.00014462,2]
[353460449,1739853033610,-500.0,0.00014462,2]
[353460450,1739853033619,-500.0,0.00014462,2]
[353460451,1739853033629,-500.0,0.00014462,2]
[353460452,1739853033639,-500.0,0.00014462,2]
[353460453,1739853033648,-500.0,0.00014462,2]
[353460454,1739853033658,-386.58,0.00014462,2]
[353460455,1739853033669,-596.78,0.00014462,2]
[353460456,1739853033682,-500.0,0.00014462,2]
[353460457,1739853033691,-500.0,0.00014462,2]
[353460458,1739853033701,-500.0,0.00014544,2]
[353460459,1739853033711,-500.0,0.00014544,2]
[353460460,1739853033721,-500.0,0.00014544,2]
[353460461,1739853033731,-500.0,0.00014544,2]
[353460462,1739853033740,-500.0,0.00014544,2]
[353460463,1739853033751,-500.0,0.00014544,2]
[353460464,1739853033763,-500.0,0.00014544,2]
[353460465,1739853033773,-500.0,0.00014544,2]
[353460466,1739853033783,-500.0,0.00014544,2]
[353460467,1739853033792,-500.0,0.00014544,2]
[353460468,1739853033802,-500.0,0.00014544,2]
[353460469,1739853033811,-500.0,0.00014544,2]
[353460470,1739853033822,-166.1,0.00014567,2]
[353460471,1739853033831,-500.0,0.00014627,2]
[353460472,1739853033841,-500.0,0.00014627,2]
[353460473,1739853033851,-500.0,0.00014627,2]
[353460474,1739853033861,-500.0,0.00014627,2]
[353460475,1739853033871,-500.0,0.00014627,2]
[353460476,1739853033880,-500.0,0.00014627,2]
[353460477,1739853033890,-500.0,0.00014627,2]
[353460478,1739853033899,-500.0,0.00014627,2]
[353460479,1739853033909,-500.0,0.00014627,2]
[353460480,1739853033919,-214.31,0.00014627,2]
[353460481,1739853033928,-500.0,0.00014627,2]
[353460482,1739853033938,-500.0,0.00014627,2]
[353460483,1739853033948,-500.0,0.00014709,2]
[353460484,1739853033957,-500.0,0.00014709,2]
[353460485,1739853033967,-500.0,0.00014709,2]
[353460486,1739853033977,-500.0,0.00014709,2]
[353460487,1739853033986,-524.09,0.00014709,2]
[353460488,1739853033996,-500.0,0.00014709,2]
[353460489,1739853034005,-500.0,0.00014709,2]
[353460490,1739853034014,-500.0,0.00014709,2]
[353460491,1739853034025,-500.0,0.00014709,2]
[353460492,1739853034040,-177.83,0.00014709,2]
[353460493,1739853034054,-393.73,0.00014709,2]
[353460494,1739853034063,-500.0,0.00014791,2]
[353460495,1739853034073,-500.0,0.00014791,2]
[353460496,1739853034082,-500.0,0.00014791,2]
[353460497,1739853034091,-500.0,0.00014791,2]
[353460498,1739853034101,-500.0,0.00014791,2]
[353460499,1739853034110,-500.0,0.00014791,2]
[353460500,1739853034119,-500.0,0.00014791,2]
[353460501,1739853034129,-500.0,0.00014791,2]
[353460502,1739853034139,-166.0,0.00014849,2]
[353460503,1739853034148,-500.0,0.00014873,2]
[353460504,1739853034158,-500.0,0.00014873,2]
[353460505,1739853034167,-500.0,0.00014873,2]
[353460506,1739853034177,-500.0,0.00014873,2]
[353460507,1739853034187,-500.0,0.00014873,2]
[353460508,1739853034196,-500.0,0.00014873,2]
[353460509,1739853034206,-500.0,0.00014873,2]
[353460510,1739853034215,-150.17,0.00014873,2]
[353460511,1739853034225,-500.0,0.00014955,2]
[353460512,1739853034235,-500.0,0.00014955,2]
[353460513,1739853034245,-458.1,0.00014955,2]
[353460514,1739853034255,-476.33,0.00014955,2]
[353460515,1739853034265,-500.0,0.00014955,2]
[353460516,1739853034274,-500.0,0.00014955,2]
[353460517,1739853034284,-500.0,0.00014955,2]
[353460518,1739853034294,-500.0,0.00015038,2]
[353460519,1739853034304,-500.0,0.00015038,2]
[353460520,1739853034314,-500.0,0.00015038,2]
[353460521,1739853034325,-500.0,0.00015038,2]
[353460522,1739853034334,-514.67,0.00015038,2]
[353460523,1739853034344,-182.71,0.00015115,2]
[353460524,1739853034354,-500.0,0.0001512,2]
[353460525,1739853034363,-500.0,0.0001512,2]
[353460526,1739853034373,-500.0,0.0001512,2]
[353460527,1739853034384,-340.51,0.0001512,2]
[353460528,1739853034394,-412.24,0.00015202,2]
[353460529,1739853034403,-500.0,0.00015202,2]
[353460530,1739853034412,-500.0,0.00015202,2]
[353460531,1739853034422,-500.0,0.00015284,2]
[353460532,1739853034431,-309.25951452,0.00015284,2]
[353460533,1739853034440,-722.27018078,0.00015295,2]
[353460534,1739853034449,-211.08501336,0.00015297,2]
[353460535,1739853034459,-500.0,0.00015366,2]
[353460536,1739853034468,-500.0,0.00015373,2]
[353460537,1739853034477,-502.65844398,0.00015373,2]
[353460538,1739853034487,-500.0,0.00015373,2]
[353460539,1739853034496,-1785.49820983,0.00015377,2]
[353460540,1739853034505,-1785.49820983,0.00015379,2]
[353460541,1739853034514,-210.83492553,0.00015386,2]
[353460542,1739853034523,-500.0,0.00015386,2]
[353460543,1739853034532,-644.34796751,0.00015386,2]
[353460544,1739853034542,-4119.7,0.00015386,2]
[353460545,1739853034551,-3570.99641966,0.00015387,2]
[353460546,1739853034560,-491.551,0.00015387,2]
[353460547,1739853034569,-503.86000953,0.00015387,2]
[353460548,1739853034579,-500.0,0.00015387,2]
[353460549,1739853034588,-500.0,0.00015387,2]
[353460550,1739853034597,-509.2353864,0.00015387,2]
[353460551,1739853034606,-509.70739394,0.00015387,2]
[353460552,1739853034615,-500.0,0.00015387,2]
[353460553,1739853034625,-500.0,0.00015387,2]
[353460554,1739853034634,-501.08621597,0.00015387,2]
[353460555,1739853034643,-500.0,0.00015387,2]
[353460556,1739853034653,-500.0,0.00015387,2]
[353460557,1739853034662,-500.0,0.00015387,2]
[353460558,1739853034671,-500.0,0.00015387,2]
[353460559,1739853034685,-500.0,0.00015387,2]
[353460560,1739853034695,-500.0,0.00015387,2]
[353460561,1739853034704,-500.0,0.00015387,2]
[353460562,1739853034714,-500.0,0.00015387,2]
[353460563,1739853034723,-500.0,0.00015387,2]
[353460564,1739853034733,-357.78274508,0.00015387,2]
[353460565,1739853034742,-508.04296415,0.00015387,2]
[353460566,1739853034751,-500.0,0.00015387,2]
[353460567,1739853034761,-500.0,0.00015387,2]
[353460568,1739853034771,-500.0,0.00015387,2]
[353460569,1739853034780,-502.15797306,0.00015387,2]
[353460570,1739853034790,-550.35107339,0.00015387,2]
[353460571,1739853034799,-503.54774411,0.00015387,2]
[353460572,1739853034808,-500.0,0.00015387,2]
[353460573,1739853034818,-500.0,0.00015387,2]
[353460574,1739853034827,-503.57324797,0.00015387,2]
[353460575,1739853034836,-501.1959701,0.00015387,2]
[353460576,1739853034845,-500.0,0.00015387,2]
[353460577,1739853034855,-500.0,0.00015387,2]
[353460578,1739853034865,-500.0,0.00015387,2]
[353460579,1739853034874,-500.0,0.00015387,2]
[353460580,1739853034883,-503.4538099,0.00015387,2]
[353460581,1739853034893,-513.99940636,0.00015387,2]
[353460582,1739853034902,-500.0,0.00015387,2]
[353460583,1739853034911,-503.8143556,0.00015387,2]
[353460584,1739853034920,-505.64935606,0.00015387,2]
[353460585,1739853034930,-500.0,0.00015387,2]
[353460586,1739853034939,-570.12996265,0.00015387,2]
[353460587,1739853034948,-506.48363056,0.00015387,2]
[353460588,1739853034958,-503.22451073,0.00015387,2]
[353460589,1739853034969,-500.0,0.00015387,2]
[353460590,1739853034978,-500.0,0.00015387,2]
[353460591,1739853034987,-500.0,0.00015387,2]
[353460592,1739853034997,-503.87590087,0.00015387,2]
[353460593,1739853035007,-500.0,0.00015387,2]
[353460594,1739853035016,-500.0,0.00015387,2]
[353460595,1739853035025,-500.85632239,0.00015387,2]
[353460596,1739853035035,-520.64561501,0.00015387,2]
[353460597,1739853035044,-500.0,0.00015387,2]
[353460598,1739853035053,-500.0,0.00015387,2]
[353460599,1739853035062,-504.35219892,0.00015387,2]
[353460600,1739853035072,-504.11229152,0.00015387,2]
[353460601,1739853035081,-503.88208496,0.00015387,2]
[353460602,1739853035091,-500.0,0.00015387,2]
[353460603,1739853035100,-442.01318569,0.00015387,2]
[353460604,1739853035110,-500.0,0.00015387,2]
[353460605,1739853035119,-503.86804983,0.00015387,2]
[353460606,1739853035129,-500.0,0.00015387,2]
[353460607,1739853035139,-500.0,0.00015387,2]
[353460608,1739853035148,-500.0,0.00015387,2]
[353460609,1739853035158,-506.15694302,0.00015387,2]
[353460610,1739853035167,-503.28423083,0.00015387,2]
[353460611,1739853035177,-500.0,0.00015387,2]
[353460612,1739853035186,-500.0,0.00015387,2]
[353460613,1739853035196,-500.0,0.00015387,2]
[353460614,1739853035205,-500.0,0.00015387,2]
[353460615,1739853035214,-503.19349143,0.00015387,2]
[353460616,1739853035224,-505.90987491,0.00015387,2]
[353460617,1739853035233,-504.60870377,0.00015387,2]
[353460618,1739853035242,-500.0,0.00015387,2]
[353460619,1739853035251,-503.32851668,0.00015387,2]
[353460620,1739853035261,-500.0,0.00015387,2]
[353460621,1739853035270,-501.31013387,0.00015387,2]
[353460622,1739853035279,-506.6961205,0.00015387,2]
[353460623,1739853035289,-505.49973716,0.00015387,2]
[353460624,1739853035298,-500.0,0.00015387,2]
[353460625,1739853035310,-500.0,0.00015387,2]
[353460626,1739853035321,-500.0,0.00015387,2]
[353460627,1739853035330,-505.62615419,0.00015387,2]
[353460628,1739853035340,-500.0,0.00015387,2]
[353460629,1739853035350,-500.0,0.00015387,2]
[353460630,1739853035360,-504.69612645,0.00015387,2]
[353460631,1739853035369,-504.21195609,0.00015387,2]
[353460632,1739853035378,-504.33572659,0.00015387,2]
[353460633,1739853035388,-500.0,0.00015387,2]
[353460634,1739853035398,-500.0,0.00015387,2]
[353460635,1739853035408,-507.25921479,0.00015387,2]
[353460636,1739853035418,-503.58669608,0.00015387,2]
[353460637,1739853035428,-508.03517256,0.00015387,2]
[353460638,1739853035437,-501.86930127,0.00015387,2]
[353460639,1739853035447,-500.0,0.00015387,2]
[353460640,1739853035457,-506.05425828,0.00015387,2]
[353460641,1739853035466,-500.0,0.00015387,2]
[353460642,1739853035476,-500.0,0.00015387,2]
[353460643,1739853035485,-502.56468204,0.00015387,2]
[353460644,1739853035494,-2944.0,0.00015387,2]
[353460645,1739853035504,-501.77196525,0.00015387,2]
[353460646,1739853035513,-500.0,0.00015387,2]
[353460647,1739853035522,-503.65731542,0.00015387,2]
[353460648,1739853035531,-503.94685675,0.00015387,2]
[353460649,1739853035541,-505.2419417,0.00015387,2]
[353460650,1739853035550,-500.0,0.00015387,2]
[353460651,1739853035559,-500.0,0.00015387,2]
[353460652,1739853035570,-500.0,0.00015387,2]
[353460653,1739853035579,-502.18330478,0.00015387,2]
[353460654,1739853035589,-500.0,0.00015387,2]
[353460655,1739853035598,-500.0,0.00015387,2]
[353460656,1739853035607,-508.46764408,0.00015387,2]
[353460657,1739853035617,-507.65518234,0.00015387,2]
[353460658,1739853035627,-463.75361296,0.00015387,2]
[353460659,1739853035636,-500.42398852,0.00015387,2]
[353460660,1739853035645,-500.0,0.00015387,2]
[353460661,1739853035655,-522.75558406,0.00015387,2]
[353460662,1739853035665,-503.62371071,0.00015387,2]
[353460663,1739853035675,-500.95820404,0.00015387,2]
[353460664,1739853035689,-504.07863677,0.00015387,2]
[353460665,1739853035698,-500.0,0.00015387,2]
[353460666,1739853035708,-500.0,0.00015387,2]
[353460667,1739853035718,-503.50545359,0.00015387,2]
[353460668,1739853035727,-500.0,0.00015387,2]
[353460669,1739853035736,-500.0,0.00015387,2]
[353460670,1739853035745,-501.9237883,0.00015387,2]
[353460671,1739853035755,-1197.7,0.00015387,2]
[353460672,1739853035764,-529.79207069,0.00015387,2]
[353460673,1739853035774,-500.0,0.00015387,2]
[353460674,1739853035783,-500.0,0.00015387,2]
[353460675,1739853035792,-502.23044753,0.00015387,2]
[353460676,1739853035802,-500.0,0.00015387,2]
[353460677,1739853035811,-502.54309021,0.00015387,2]
[353460678,1739853035821,-4119.7,0.00015387,2]
[353460679,1739853035830,-500.0,0.00015387,2]
[353460680,1739853035839,-501.66782679,0.00015387,2]
[353460681,1739853035848,-500.0,0.00015387,2]
[353460682,1739853035858,-502.8495668,0.00015387,2]
[353460683,1739853035867,-502.67256163,0.00015387,2]
[353460684,1739853035877,-500.0,0.00015387,2]
[353460685,1739853035887,-501.83963437,0.00015387,2]
[353460686,1739853035897,-500.0,0.00015387,2]
[353460687,1739853035906,-192.15038798,0.00015387,2]
[353460688,1739853035915,-500.0,0.00015387,2]
[353460689,1739853035924,-1785.49820983,0.00015388,2]
[353460690,1739853035933,-500.0,0.00015396,2]
[353460691,1739853036020,-297.4,0.00015396,2]
[353460692,1739853036030,-500.0,0.00015396,2]
[353460693,1739853036039,-253.52,0.00015396,2]
[353460694,1739853036049,-500.0,0.00015396,2]
[353460695,1739853036058,-150.54574157,0.00015396,2]
[353460696,1739853036069,-4119.7,0.00015396,2]
[353460697,1739853036078,-4119.7,0.00015396,2]
[353460698,1739853036088,-4119.7,0.00015396,2]
[353460699,1739853036097,-4119.7,0.00015396,2]
[353460700,1739853036107,-4119.7,0.00015396,2]
[353460701,1739853036116,-503.35625999,0.00015397,2]
[353460702,1739853036125,-503.56941938,0.00015397,2]
[353460703,1739853036135,-506.23061428,0.00015397,2]
[353460704,1739853036145,-503.12099314,0.00015397,2]
[353460705,1739853036155,-505.12295282,0.00015397,2]
[353460706,1739853036164,-503.92981191,0.00015397,2]
[353460707,1739853036174,-501.65704991,0.00015397,2]
[353460708,1739853036183,-504.45429007,0.00015397,2]
[353460709,1739853036193,-500.0,0.00015397,2]
[353460710,1739853036203,-501.99157386,0.00015397,2]
[353460711,1739853036213,-500.0,0.00015397,2]
[353460712,1739853036222,-503.65740042,0.00015397,2]
[353460713,1739853036231,-500.0,0.00015397,2]
[353460714,1739853036242,-500.0,0.00015397,2]
[353460715,1739853036251,-505.43556259,0.00015397,2]
[353460716,1739853036262,-502.74329643,0.00015397,2]
[353460717,1739853036271,-504.94167292,0.00015397,2]
[353460718,1739853036281,-502.60845114,0.00015397,2]
[353460719,1739853036290,-502.03660671,0.00015397,2]